fUSD/lending_fUSD_20240506
["ID","MTS","AMOUNT","RATE_DAILY","PERIOD"]
[326486931,1714995038663,-504.88075357,0.00024657,2]
[326486932,1714995038672,-501.87,0.00024657,2]
[326486933,1714995038683,-2663.82,0.00024657,2]
[326486934,1714995038693,-1005.82,0.00024657,2]
[326486935,1714995038703,-917.57,0.00024657,2]
[326486936,1714995038713,-884.5,0.00024657,2]
[326486937,1714995038723,-1029.84,0.00024657,2]
[326486938,1714995038734,-500.0,0.00024657,2]
[326486939,1714995038744,-1472.92,0.00024657,2]
[326486940,1714995038754,-500.0,0.00024657,2]
[326486941,1714995038764,-500.0,0.00024657,2]
[326486942,1714995038775,-18851.7230659,0.00024657,2]
[326486943,1714995038784,-500.0,0.00024657,2]
[326486944,1714995038795,-2359.29,0.00024657,2]
[326486945,1714995038805,-500.0,0.00024657,2]
[326486946,1714995038815,-500.0,0.00024657,2]
[326486947,1714995038826,-1896.48,0.00024657,2]
[326486948,1714995038836,-500.0,0.00024657,2]
[326486949,1714995038845,-1051.73,0.00024657,2]
[326486950,1714995038856,-834.41,0.00024657,2]
[326486951,1714995038866,-568.78,0.00024657,2]
[326486952,1714995038877,-1252.38,0.00024657,2]
[326486953,1714995038887,-500.0,0.00024657,2]
[326486954,1714995038897,-429.77395202,0.00024657,2]
[326486955,1714995038908,-1313.65,0.00024657,2]
[326486956,1714995038919,-2221.44,0.00024657,2]
[326486957,1714995038928,-505.80378138,0.00024657,2]
[326486958,1714995038937,-1047.43,0.00024657,2]
[326486959,1714995038947,-528.02,0.00024657,2]
[326486960,1714995038956,-512.77194032,0.00024657,2]
[326486961,1714995038966,-1947.27,0.00024657,2]
[326486962,1714995038975,-500.0,0.00024657,2]
[326486963,1714995038984,-1202.55,0.00024657,2]
[326486964,1714995038994,-538.87,0.00024657,2]
[326486965,1714995039004,-503.1125885,0.00024657,2]
[326486966,1714995039014,-506.71560369,0.00024657,2]
[326486967,1714995039024,-2605.79,0.00024657,2]
[326486968,1714995039034,-1290.57,0.00024657,2]
[326486969,1714995039044,-507.99072572,0.00024657,2]
[326486970,1714995039054,-504.07005805,0.00024657,2]
[326486971,1714995039065,-1044.07,0.00024657,2]
[326486972,1714995039075,-500.0,0.00024657,2]
[326486973,1714995039085,-500.0,0.00024657,2]
[326486974,1714995039095,-1172.53,0.00024657,2]
[326486975,1714995039105,-502.96840136,0.00024657,2]
[326486976,1714995039115,-721.71,0.00024657,2]
[326486977,1714995039126,-506.33559392,0.00024657,2]
[326486978,1714995039137,-637.45624837,0.00024657,2]
[326486979,1714995039146,-1180.24,0.00024657,2]
[326486980,1714995039156,-1251.79,0.00024657,2]
[326486981,1714995039166,-500.0,0.00024657,2]
[326486982,1714995039176,-631.35,0.00024657,2]
[326486983,1714995039187,-500.0,0.00024657,2]
[326486984,1714995039196,-979.76,0.00024657,2]
[326486985,1714995039206,-500.0,0.00024657,2]
[326486986,1714995039216,-500.0,0.00024657,2]
[326486987,1714995039227,-1198.81,0.00024657,2]
[326486988,1714995039238,-1637.73,0.00024657,2]
[326486989,1714995039249,-1125.06,0.00024657,2]
[326486990,1714995039259,-615.05,0.00024657,2]
[326486991,1714995039269,-576.98,0.00024657,2]
[326486992,1714995039280,-504.19296317,0.00024657,2]
[326486993,1714995039290,-711.34,0.00024657,2]
[326486994,1714995039300,-500.0,0.00024657,2]
[326486995,1714995039310,-772.89,0.00024657,2]
[326486996,1714995039320,-1104.71,0.00024657,2]
[326486997,1714995039330,-500.0,0.00024657,2]
[326486998,1714995039340,-1725.09,0.00024657,2]
[326486999,1714995039350,-499.32008965,0.00024657,2]
[326487000,1714995039360,-712.09,0.00024657,2]
[326487001,1714995039370,-500.0,0.00024657,2]
[326487002,1714995039381,-647.6,0.00024657,2]
[326487003,1714995039392,-506.46891272,0.00024657,2]
[326487004,1714995039402,-500.0,0.00024657,2]
[326487005,1714995039412,-500.0,0.00024657,2]
[326487006,1714995039422,-1063.68,0.00024657,2]
[326487007,1714995039432,-506.34414143,0.00024657,2]
[326487008,1714995039443,-1073.66,0.00024657,2]
[326487009,1714995039458,-484.87984754,0.00024657,2]
[326487010,1714995039478,-953.41,0.00024657,2]
[326487011,1714995039490,-500.0,0.00024657,2]
[326487012,1714995039501,-979.85,0.00024657,2]
[326487013,1714995039516,-906.98,0.00024657,2]
[326487014,1714995039526,-1699.34,0.00024657,2]
[326487015,1714995039536,-506.07277175,0.00024657,2]
[326487016,1714995039546,-501.84926,0.00024657,2]
[326487017,1714995039556,-1925.16,0.00024657,2]
[326487018,1714995039566,-500.0,0.00024657,2]
[326487019,1714995039576,-1244.9,0.00024657,2]
[326487020,1714995039587,-1627.56,0.00024657,2]
[326487021,1714995039601,-500.0,0.00024657,2]
[326487022,1714995039612,-500.0,0.00024657,2]
[326487023,1714995039623,-503.67357292,0.00024657,2]
[326487024,1714995039633,-500.0,0.00024657,2]
[326487025,1714995039644,-502.7690898,0.00024657,2]
[326487026,1714995039655,-521.38,0.00024657,2]
[326487027,1714995039665,-500.0,0.00024657,2]
[326487028,1714995039677,-500.0,0.00024657,2]
[326487029,1714995039688,-500.0,0.00024657,2]
[326487030,1714995039699,-505.34586465,0.00024657,2]
[326487031,1714995039710,-500.0,0.00024657,2]
[326487032,1714995039720,-768.12,0.00024657,2]
[326487033,1714995039731,-1808.49,0.00024657,2]
[326487034,1714995039741,-749.51,0.00024657,2]
[326487035,1714995039752,-502.32720997,0.00024657,2]
[326487036,1714995039762,-500.0,0.00024657,2]
[326487037,1714995039772,-500.0,0.00024657,2]
[326487038,1714995039782,-500.0,0.00024657,2]
[326487039,1714995039792,-502.42548287,0.00024657,2]
[326487040,1714995039801,-720.94,0.00024657,2]
[326487041,1714995039814,-2766.14,0.00024657,2]
[326487042,1714995039825,-1063.07,0.00024657,2]
[326487043,1714995039834,-500.0,0.00024657,2]
[326487044,1714995039844,-507.50370406,0.00024657,2]
[326487045,1714995039854,-657.01,0.00024657,2]
[326487046,1714995039865,-504.60385964,0.00024657,2]
[326487047,1714995039875,-500.0,0.00024657,2]
[326487048,1714995039885,-248.70265644,0.00024657,2]
[326487049,1714995039894,-500.0,0.00024657,2]
[326487050,1714995039904,-500.0,0.00024657,2]
[326487051,1714995039915,-1053.6,0.00024657,2]
[326487052,1714995039925,-500.0,0.00024657,2]
[326487053,1714995039935,-500.0,0.00024657,2]
[326487054,1714995039946,-500.0,0.00024657,2]
[326487055,1714995039955,-508.23061556,0.00024657,2]
[326487056,1714995039965,-2241.19,0.00024657,2]
[326487057,1714995039975,-500.0,0.00024657,2]
[326487058,1714995039985,-657.29,0.00024657,2]
[326487059,1714995039995,-500.0,0.00024657,2]
[326487060,1714995040004,-500.0,0.00024657,2]
[326487061,1714995040253,-1037.91,0.00024657,2]
[326487062,1714995040264,-500.0,0.00024657,2]
[326487063,1714995040274,-2052.74,0.00024657,2]
[326487064,1714995040284,-2619.21,0.00024657,2]
[326487065,1714995040294,-612.86507017,0.00024657,2]
[326487066,1714995040304,-503.62780418,0.00024657,2]
[326487067,1714995040314,-505.50388475,0.00024657,2]
[326487068,1714995040324,-604.18,0.00024657,2]
[326487069,1714995040336,-500.0,0.00024657,2]
[326487070,1714995040346,-500.0,0.00024657,2]
[326487071,1714995040356,-1156.78,0.00024657,2]
[326487072,1714995040366,-678.2,0.00024657,2]
[326487073,1714995040377,-502.48733326,0.00024657,2]
[326487074,1714995040387,-2077.84,0.00024657,2]
[326487075,1714995040397,-1643.3,0.00024657,2]
[326487076,1714995040408,-542.74181579,0.00024657,2]
[326487077,1714995040419,-1899.01,0.00024657,2]
[326487078,1714995040429,-500.0,0.00024657,2]
[326487079,1714995040439,-504.05873715,0.00024657,2]
[326487080,1714995040449,-506.96008013,0.00024657,2]
[326487081,1714995040461,-500.0,0.00024657,2]
[326487082,1714995040472,-1260.61,0.00024657,2]
[326487083,1714995040485,-500.0,0.00024657,2]
[326487084,1714995040496,-813.42,0.00024657,2]
[326487085,1714995040507,-506.62988847,0.00024657,2]
[326487086,1714995040518,-709.85,0.00024657,2]
[326487087,1714995040528,-651.82,0.00024657,2]
[326487088,1714995040539,-500.0,0.00024657,2]
[326487089,1714995040550,-3645.07,0.00024657,2]
[326487090,1714995040560,-504.50978203,0.00024657,2]
[326487091,1714995040571,-500.0,0.00024657,2]
[326487092,1714995040581,-3141.18,0.00024657,2]
[326487093,1714995040593,-1313.56,0.00024657,2]
[326487094,1714995040608,-500.0,0.00024657,2]
[326487095,1714995040619,-305.24402626,0.00024657,2]
[326487096,1714995040631,-500.0,0.00024657,2]
[326487097,1714995040642,-500.0,0.00024657,2]
[326487098,1714995040652,-652.33,0.00024657,2]
[326487099,1714995040662,-500.0,0.00024657,2]
[326487100,1714995040672,-500.0,0.00024657,2]
[326487101,1714995040685,-766.82,0.00024657,2]
[326487102,1714995040694,-500.0,0.00024657,2]
[326487103,1714995040704,-506.62762656,0.00024657,2]
[326487104,1714995040714,-500.0,0.00024657,2]
[326487105,1714995040724,-500.0,0.00024657,2]
[326487106,1714995040734,-500.0,0.00024657,2]
[326487107,1714995040744,-500.0,0.00024657,2]
[326487108,1714995040754,-3454.79,0.00024657,2]
[326487109,1714995040764,-1823.7,0.00024657,2]
[326487110,1714995040774,-1737.05,0.00024657,2]
[326487111,1714995040785,-1388.76,0.00024657,2]
[326487112,1714995040795,-500.0,0.00024657,2]
[326487113,1714995040805,-867.19,0.00024657,2]
[326487114,1714995040815,-500.0,0.00024657,2]
[326487115,1714995040825,-645.37223938,0.00024657,2]
[326487116,1714995040835,-508.65518311,0.00024657,2]
[326487117,1714995040844,-458.08018395,0.00024657,2]
[326487118,1714995040854,-2019.87,0.00024657,2]
[326487119,1714995040864,-949.35,0.00024657,2]
[326487120,1714995040875,-159.46205691,0.00024657,2]
[326487121,1714995040885,-500.0,0.00024657,2]
[326487122,1714995040894,-500.0,0.00024657,2]
[326487123,1714995040904,-506.60611329,0.00024657,2]
[326487124,1714995040915,-500.0,0.00024657,2]
[326487125,1714995040925,-300.0,0.00024657,2]
[326487126,1714995040935,-500.0,0.00024657,2]
[326487127,1714995040945,-1465.35,0.00024657,2]
[326487128,1714995040955,-504.5991236,0.00024657,2]
[326487129,1714995040964,-876.68,0.00024657,2]
[326487130,1714995040974,-6266.18,0.00024657,2]
[326487131,1714995040984,-500.0,0.00024657,2]
[326487132,1714995040994,-785.84,0.00024657,2]
[326487133,1714995041003,-500.0,0.00024657,2]
[326487134,1714995041012,-503.6815164,0.00024657,2]
[326487135,1714995041022,-1282.07,0.00024657,2]
[326487136,1714995041032,-500.0,0.00024657,2]
[326487137,1714995041043,-527.65322149,0.00024657,2]
[326487138,1714995041053,-500.0,0.00024657,2]
[326487139,1714995041062,-500.0,0.00024657,2]
[326487140,1714995041072,-1160.64,0.00024657,2]
[326487141,1714995041081,-2612.49,0.00024657,2]
[326487142,1714995041091,-500.0,0.00024657,2]
[326487143,1714995041101,-663.14,0.00024657,2]
[326487144,1714995041110,-500.0,0.00024657,2]
[326487145,1714995041121,-618.06,0.00024657,2]
[326487146,1714995041133,-2869.82,0.00024657,2]
[326487147,1714995041143,-2624.71,0.00024657,2]
[326487148,1714995041152,-6398.64,0.00024657,2]
[326487149,1714995041163,-151.0,0.00024657,7]
[326487150,1714995041172,-1470.46,0.00024657,2]
[326487151,1714995041181,-500.0,0.00024657,2]
[326487152,1714995041191,-500.0,0.00024657,2]
[326487153,1714995041201,-508.81,0.00024657,2]
[326487154,1714995041211,-777.35,0.00024657,2]
[326487155,1714995041220,-541.58,0.00024657,2]
[326487156,1714995041230,-500.0,0.00024657,2]
[326487157,1714995041240,-505.90339787,0.00024657,2]
[326487158,1714995041249,-876.27,0.00024657,2]
[326487159,1714995041259,-505.50930636,0.00024657,2]
[326487160,1714995041268,-529.62,0.00024657,2]
[326487161,1714995041278,-787.94,0.00024657,2]
[326487162,1714995041288,-1322.31,0.00024657,2]
[326487163,1714995041297,-503.98787957,0.00024657,2]
[326487164,1714995041307,-532.03,0.00024657,2]
[326487165,1714995041317,-469.82969788,0.00024657,2]
[326487166,1714995041326,-500.0,0.00024657,2]
[326487167,1714995041336,-3299.65,0.00024657,2]
[326487168,1714995041346,-503.26990411,0.00024657,2]
[326487169,1714995041362,-540.95,0.00024657,2]
[326487170,1714995041373,-1624.55,0.00024657,2]
[326487171,1714995041384,-500.0,0.00024657,2]
[326487172,1714995041394,-2163.98,0.00024657,2]
[326487173,1714995041406,-500.0,0.00024657,2]
[326487174,1714995041416,-1112.29,0.00024657,2]
[326487175,1714995041426,-1899.56,0.00024657,2]
[326487176,1714995041436,-500.0,0.00024657,2]
[326487177,1714995041446,-500.0,0.00024657,2]
[326487178,1714995041456,-503.03,0.00024657,2]
[326487179,1714995041465,-500.0,0.00024657,2]
[326487180,1714995041475,-3151.16,0.00024657,2]
[326487181,1714995041485,-537.8836882,0.00024657,2]
[326487182,1714995041494,-957.97,0.00024657,2]
[326487183,1714995041504,-788.14,0.00024657,2]
[326487184,1714995041514,-504.94341934,0.00024657,2]
[326487185,1714995041523,-500.0,0.00024657,2]
[326487186,1714995041533,-2896.76,0.00024657,2]
[326487187,1714995041542,-502.72667086,0.00024657,2]
[326487188,1714995041552,-565.16,0.00024657,2]
[326487189,1714995041562,-223.57144248,0.00024657,2]
[326487190,1714995041572,-653.8,0.00024657,2]
[326487191,1714995041582,-500.0,0.00024657,2]
[326487192,1714995041591,-503.3932565,0.00024657,2]
[326487193,1714995041606,-500.0,0.00024657,2]
[326487194,1714995041616,-838.22,0.00024657,2]
[326487195,1714995041627,-499.99586275,0.00024657,2]
[326487196,1714995041636,-500.0,0.00024657,2]
[326487197,1714995041647,-2037.11,0.00024657,2]
[326487198,1714995041657,-500.0,0.00024657,2]
[326487199,1714995041667,-503.72848375,0.00024657,2]
[326487200,1714995041676,-2542.16,0.00024657,2]
[326487201,1714995041688,-505.0,0.00024657,2]
[326487202,1714995041698,-500.0,0.00024657,2]
[326487203,1714995041707,-504.35086367,0.00024657,2]
[326487204,1714995041716,-500.0,0.00024657,2]
[326487205,1714995041726,-9626.78,0.00024657,2]
[326487206,1714995041735,-500.0,0.00024657,3]
[326487207,1714995041744,-504.07408588,0.00024657,2]
[326487208,1714995041754,-370.04617044,0.00024657,4]
[326487209,1714995041764,-500.0,0.00024657,2]
[326487210,1714995041774,-500.0,0.00024657,2]
[326487211,1714995041783,-1209.94,0.00024657,2]
[326487212,1714995041793,-684.56,0.00024657,2]
[326487213,1714995041804,-3615.01,0.00024657,2]
[326487214,1714995041814,-1433.59,0.00024657,2]
[326487215,1714995041824,-1874.59,0.00024657,2]
[326487216,1714995041833,-500.0,0.00024657,2]
[326487217,1714995041843,-504.5792633,0.00024657,2]
[326487218,1714995041853,-633.23,0.00024657,2]
[326487219,1714995041863,-500.0,0.00024657,2]
[326487220,1714995041872,-500.0,0.00024657,2]
[326487221,1714995041882,-2239.11,0.00024657,2]
[326487222,1714995041891,-509.64752865,0.00024657,2]
[326487223,1714995041901,-500.0,0.00024657,2]
[326487224,1714995041911,-895.08,0.00024657,2]
[326487225,1714995041921,-503.36252516,0.00024657,2]
[326487226,1714995041931,-503.70966034,0.00024657,2]
[326487227,1714995041940,-1734.63,0.00024657,2]
[326487228,1714995041950,-1784.91,0.00024657,2]
[326487229,1714995041959,-500.0,0.00024657,2]
[326487230,1714995041969,-500.0,0.00024657,2]
[326487231,1714995041978,-505.92877088,0.00024657,2]
[326487232,1714995041988,-34113.96,0.00024657,2]
[326487233,1714995041998,-500.0,0.00024657,2]
[326487234,1714995042008,-500.0,0.00024657,2]
[326487235,1714995042018,-1408.91,0.00024657,2]
[326487236,1714995042028,-754.69,0.00024657,2]
[326487237,1714995042038,-373.5994658,0.00024657,2]
[326487238,1714995042053,-506.62515976,0.00024657,2]
[326487239,1714995042071,-1457.47,0.00024657,2]
[326487240,1714995042088,-500.0,0.00024657,2]
[326487241,1714995042102,-1146.4,0.00024657,2]
[326487242,1714995042119,-500.0,0.00024657,2]
[326487243,1714995042137,-502.16399258,0.00024657,2]
[326487244,1714995042155,-500.0,0.00024657,2]
[326487245,1714995042170,-500.0,0.00024657,2]
[326487246,1714995042191,-19611.45,0.00024657,2]
[326487247,1714995042208,-519.51670026,0.00024657,2]
[326487248,1714995042224,-500.0,0.00024657,2]
[326487249,1714995042237,-1188.58,0.00024657,2]
[326487250,1714995042252,-1169.04,0.00024657,2]
[326487251,1714995042268,-544.88,0.00024657,2]
[326487252,1714995042284,-500.0,0.00024657,2]
[326487253,1714995042302,-505.19784932,0.00024657,2]
[326487254,1714995042317,-1413.58,0.00024657,2]
[326487255,1714995042330,-505.00711855,0.00024657,2]
[326487256,1714995042342,-1038.56,0.00024657,2]
[326487257,1714995042357,-500.0,0.00024657,2]
[326487258,1714995042372,-502.82270324,0.00024657,2]
[326487259,1714995042387,-500.0,0.00024657,2]
[326487260,1714995042401,-1478.4,0.00024657,2]
[326487261,1714995042416,-813.38,0.00024657,2]
[326487262,1714995042428,-875.87,0.00024657,2]
[326487263,1714995042441,-506.70314471,0.00024657,2]
[326487264,1714995042454,-590.79,0.00024657,2]
[326487265,1714995042468,-500.0,0.00024657,2]
[326487266,1714995042481,-506.33163757,0.00024657,2]
[326487267,1714995042494,-17301.27,0.00024657,2]
[326487268,1714995042508,-500.0,0.00024657,2]
[326487269,1714995042521,-504.89878416,0.00024657,2]
[326487270,1714995042535,-3806.45,0.00024657,2]
[326487271,1714995042549,-504.64542045,0.00024657,2]
[326487272,1714995042562,-505.13090039,0.00024657,2]
[326487273,1714995042577,-1199.18,0.00024657,2]
[326487274,1714995042589,-500.0,0.00024657,2]
[326487275,1714995042605,-2731.04,0.00024657,2]
[326487276,1714995042618,-500.0,0.00024657,2]
[326487277,1714995042632,-500.0,0.00024657,2]
[326487278,1714995042652,-500.0,0.00024657,2]
[326487279,1714995042666,-3695.78,0.00024657,2]
[326487280,1714995042682,-500.0,0.00024657,2]
[326487281,1714995042696,-1635.16,0.00024657,2]
[326487282,1714995042709,-2903.75,0.00024657,2]
[326487283,1714995042722,-511.53505056,0.00024657,2]
[326487284,1714995042736,-503.24318072,0.00024657,2]
[326487285,1714995042751,-502.25751726,0.00024657,2]
[326487286,1714995042765,-319.41932654,0.00024657,2]
[326487287,1714995042780,-502.86918027,0.00024657,2]
[326487288,1714995042794,-5740.49,0.00024657,2]
[326487289,1714995042807,-5232.18,0.00024657,2]
[326487290,1714995042825,-500.0,0.00024657,2]
[326487291,1714995042839,-4638.67,0.00024657,2]
[326487292,1714995042853,-500.0,0.00024657,2]
[326487293,1714995042867,-506.37733859,0.00024657,2]
[326487294,1714995042883,-502.7609922,0.00024657,2]
[326487295,1714995042897,-737.75,0.00024657,2]
[326487296,1714995042911,-502.7805052,0.00024657,2]
[326487297,1714995042926,-3373.61,0.00024657,2]
[326487298,1714995042941,-533.96,0.00024657,2]
[326487299,1714995042956,-220.19217391,0.00024657,2]
[326487300,1714995042971,-1780.94,0.00024657,2]
[326487301,1714995042986,-5891.28,0.00024657,2]
[326487302,1714995043001,-17896.09,0.00024657,2]
[326487303,1714995043016,-6399.15,0.00024657,2]
[326487304,1714995043029,-500.0,0.00024657,2]
[326487305,1714995043044,-505.46,0.00024657,2]
[326487306,1714995043058,-599.57,0.00024657,2]
[326487307,1714995043073,-500.0,0.00024657,2]
[326487308,1714995043088,-1265.79,0.00024657,2]
[326487309,1714995043102,-500.0,0.00024657,2]
[326487310,1714995043117,-784.09,0.00024657,2]
[326487311,1714995043133,-3019.88,0.00024657,2]
[326487312,1714995043147,-500.0,0.00024657,2]
[326487313,1714995043161,-2596.68,0.00024657,2]
[326487314,1714995043175,-734.24,0.00024657,2]
[326487315,1714995043188,-11817.72,0.00024657,2]
[326487316,1714995043202,-1334.19,0.00024657,2]
[326487317,1714995043217,-931.97,0.00024657,2]
[326487318,1714995043231,-525.98409007,0.00024657,2]
[326487319,1714995043246,-2835.13,0.00024657,2]
[326487320,1714995043260,-974.69,0.00024657,2]
[326487321,1714995043275,-1456.06,0.00024657,2]
[326487322,1714995043288,-3040.86,0.00024657,2]
[326487323,1714995043304,-1281.26,0.00024657,2]
[326487324,1714995043317,-1066.78,0.00024657,2]
[326487325,1714995043331,-1078.77,0.00024657,2]
[326487326,1714995043347,-505.25986748,0.00024657,2]
[326487327,1714995043366,-2857.32,0.00024657,2]
[326487328,1714995043383,-3378.85,0.00024657,2]
[326487329,1714995043398,-1038.19,0.00024657,2]
[326487330,1714995043412,-500.0,0.00024657,2]
[326487331,1714995043427,-3174.24,0.00024657,2]
[326487332,1714995043441,-1397.46,0.00024657,2]
[326487333,1714995043454,-3352.3,0.00024657,2]
[326487334,1714995043468,-500.0,0.00024657,2]
[326487335,1714995043482,-656.49,0.00024657,2]
[326487336,1714995043497,-580.01,0.00024657,2]
[326487337,1714995043511,-1422.27,0.00024657,2]
[326487338,1714995043527,-500.0,0.00024657,2]
[326487339,1714995043540,-1112.59,0.00024657,2]
[326487340,1714995043554,-570.87524075,0.00024657,2]
[326487341,1714995043566,-3015.02,0.00024657,2]
[326487342,1714995043581,-1378.11,0.00024657,2]
[326487343,1714995043595,-1806.9,0.00024657,2]
[326487344,1714995043613,-792.71,0.00024657,2]
[326487345,1714995043628,-1706.02,0.00024657,2]
[326487346,1714995043642,-50352.5,0.00024657,2]
[326487347,1714995043655,-1692.55,0.00024657,2]
[326487348,1714995043669,-151.0,0.00024657,7]
[326487349,1714995043687,-700.69,0.00024657,2]
[326487350,1714995043702,-1010.08,0.00024657,2]
[326487351,1714995043716,-4268.07,0.00024657,2]
[326487352,1714995043731,-500.0,0.00024657,2]
[326487353,1714995043745,-1358.37,0.00024657,2]
[326487354,1714995043762,-6662.19,0.00024657,2]
[326487355,1714995043776,-1551.44,0.00024657,2]
[326487356,1714995043791,-555.96574383,0.00024657,2]
[326487357,1714995043806,-3464.34,0.00024657,2]
[326487358,1714995043821,-500.0,0.00024657,2]
[326487359,1714995043836,-506.4424433,0.00024657,2]
[326487360,1714995043850,-500.0,0.00024657,2]
[326487361,1714995043863,-500.0,0.00024657,2]
[326487362,1714995043878,-151.0,0.00024657,7]
[326487363,1714995043894,-507.70032048,0.00024657,2]
[326487364,1714995043908,-500.0,0.00024657,2]
[326487365,1714995043922,-1912.55,0.00024657,2]
[326487366,1714995043938,-500.0,0.00024657,2]
[326487367,1714995043951,-569.92,0.00024657,2]
[326487368,1714995043966,-1185.54,0.00024657,2]
[326487369,1714995043979,-500.0,0.00024657,2]
[326487370,1714995043993,-500.0,0.00024657,2]
[326487371,1714995044007,-151.0,0.00024657,7]
[326487372,1714995044020,-513.05,0.00024657,2]
[326487373,1714995044034,-817.13,0.00024657,2]
[326487374,1714995044048,-566.03,0.00024657,2]
[326487375,1714995044062,-1709.36,0.00024657,2]
[326487376,1714995044076,-500.0,0.00024657,2]
[326487377,1714995044089,-500.0,0.00024657,2]
[326487378,1714995044103,-500.0,0.00024657,2]
[326487379,1714995044116,-3315.37,0.00024657,2]
[326487380,1714995044131,-500.0,0.00024657,2]
[326487381,1714995044144,-500.0,0.00024657,2]
[326487382,1714995044159,-500.0,0.00024657,2]
[326487383,1714995044172,-500.0,0.00024657,2]
[326487384,1714995044185,-624.42,0.00024657,2]
[326487385,1714995044199,-500.0,0.00024657,2]
[326487386,1714995044215,-833.64,0.00024657,2]
[326487387,1714995044229,-7022.0,0.00024657,2]
[326487388,1714995044243,-500.0,0.00024657,2]
[326487389,1714995044257,-7022.0,0.00024657,3]
[326487390,1714995044272,-7022.0,0.00024657,4]
[326487391,1714995044286,-2503.76,0.00024657,2]
[326487392,1714995044299,-4158.46,0.00024657,2]
[326487393,1714995044314,-7022.0,0.00024657,5]
[326487394,1714995044327,-7022.0,0.00024657,6]
[326487395,1714995044344,-7022.0,0.00024657,7]
[326487396,1714995044358,-646.27,0.00024657,2]
[326487397,1714995044373,-7022.0,0.00024657,8]
[326487398,1714995044390,-7022.0,0.00024657,9]
[326487399,1714995044404,-500.0,0.00024657,2]
[326487400,1714995044417,-7022.0,0.00024657,10]
[326487401,1714995044431,-950.21,0.00024657,2]
[326487402,1714995044445,-2683.86,0.00024657,2]
[326487403,1714995044459,-7189.59,0.00024657,2]
[326487404,1714995044469,-500.0,0.00024657,2]
[326487405,1714995044479,-1323.32,0.00024657,2]
[326487406,1714995044490,-965.18,0.00024657,2]
[326487407,1714995044501,-717.98,0.00024657,2]
[326487408,1714995044512,-7022.0,0.00024657,11]
[326487409,1714995044522,-508.79,0.00024657,2]
[326487410,1714995044533,-666.14,0.00024657,2]
[326487411,1714995044542,-500.0,0.00024657,2]
[326487412,1714995044553,-3618.09,0.00024657,2]
[326487413,1714995044564,-562.26,0.00024657,2]
[326487414,1714995044576,-792.58,0.00024657,2]
[326487415,1714995044977,-879.49,0.00024657,2]
[326487416,1714995045162,-25175.47,0.00024657,2]
[326487417,1714995045204,-500.0,0.00024657,2]
[326487418,1714995045214,-7022.0,0.00024657,12]
[326487419,1714995045225,-4414.88,0.00024657,2]
[326487420,1714995045236,-1830.12,0.00024657,2]
[326487421,1714995045247,-852.62,0.00024657,2]
[326487422,1714995045257,-500.0,0.00024657,2]
[326487423,1714995045267,-1059.88,0.00024657,2]
[326487424,1714995045278,-503.52220257,0.00024657,2]
[326487425,1714995045289,-500.0,0.00024657,2]
[326487426,1714995045299,-4191.62,0.00024657,2]
[326487427,1714995045310,-1151.41,0.00024657,2]
[326487428,1714995045320,-37708.99,0.00024657,2]
[326487429,1714995045330,-560.81,0.00024657,2]
[326487430,1714995045340,-502.20640525,0.00024657,2]